lending/lending_fUSD_20240507
["ID","MTS","AMOUNT","RATE_DAILY","PERIOD"]
[326586469,1715117750983,423.26326081,6.246e-05,2]
[326586470,1715117753862,288.78428992,6.94e-05,2]
[326586471,1715117755779,7507.62000178,6.94e-05,2]
[326586472,1715117762928,423.26326081,6.246e-05,2]
[326586473,1715117763364,560.23756032,6.94e-05,2]
[326586474,1715117766754,19704.51949079,6.94e-05,2]
[326586475,1715117769845,288.78428992,6.94e-05,2]
[326586476,1715117775763,3537.82082295,6.94e-05,2]
[326586477,1715117782964,423.26326081,6.246e-05,2]
[326586478,1715117783351,560.23756032,6.94e-05,2]
[326586479,1715117788765,366.28363483,6.94e-05,2]
[326586480,1715117789837,288.78428992,6.94e-05,2]
[326586481,1715117790687,19704.51949079,6.94e-05,2]
[326586482,1715117799431,560.23756032,6.94e-05,2]
[326586483,1715117802736,366.28363483,6.94e-05,2]
[326586484,1715117802933,461.61477609,6.246e-05,2]
[326586485,1715117806692,19704.51949079,6.94e-05,2]
[326586486,1715117817352,560.23756032,6.94e-05,2]
[326586487,1715117819100,364.93387161,6.94e-05,2]
[326586488,1715117819851,288.78428992,6.94e-05,2]
[326586489,1715117824695,19704.51949079,6.94e-05,2]
[326586490,1715117828773,-155.0,0.00011694,2]
[326586491,1715117828794,-1856.0,0.00011695,2]
[326586492,1715117835351,560.23756032,6.94e-05,2]
[326586493,1715117835852,288.78428992,6.94e-05,2]
[326586495,1715117844696,19704.51949079,6.94e-05,2]
[326586496,1715117851351,560.23756032,6.94e-05,2]
[326586497,1715117862699,19704.51949079,6.94e-05,2]
[326586498,1715117869376,560.23756032,6.94e-05,2]
[326586499,1715117869871,288.85890752,6.94e-05,2]
[326586500,1715117882704,19704.51949079,6.94e-05,2]
[326586501,1715117885864,288.70967232,6.94e-05,2]
[326586502,1715117889368,560.23756032,6.94e-05,2]
[326586503,1715117902876,19704.51949079,6.94e-05,2]
[326586504,1715117905871,288.78428992,6.94e-05,2]
[326586505,1715117908219,560.23756032,6.94e-05,2]
[326586506,1715117923895,19704.51949079,6.94e-05,2]
[326586507,1715117923986,560.23756032,6.94e-05,2]
[326586508,1715117927892,288.78428992,6.94e-05,2]
[326586509,1715117943375,560.23756032,6.94e-05,2]
[326586510,1715117948707,19704.51949079,6.94e-05,2]
[326586511,1715117961395,638.52072336,6.94e-05,2]
[326586512,1715117964946,19704.51949079,6.94e-05,2]
[326586513,1715117982911,3980.54769925,6.94e-05,2]
[326586514,1715118026722,17365.33387516,6.94e-05,2]
[326586515,1715118033384,560.13940762,6.94e-05,2]
[326586517,1715118488770,1163.71755749,6.94e-05,2]
[326586518,1715118489944,288.78428992,6.94e-05,2]
[326586519,1715118493433,560.13940762,6.94e-05,2]
[326586524,1715118633073,-534.95638881,0.00011415,2]
[326586527,1715118633083,-155.0,0.00011416,2]
[326586530,1715118633092,-155.0,0.00011416,2]
[326586533,1715118633101,-202.47038102,0.00011417,2]
[326586544,1715118633383,-1.26566425,0.00011417,2]
[326586545,1715118633395,-160.08203065,0.00011417,2]
[326586546,1715118633405,-207.10980669,0.00011417,2]
[326586547,1715118633414,-262.68990001,0.00011417,2]
[326586548,1715118633423,-3004.89985123,0.00011417,2]
[326586549,1715118633433,-536.79102365,0.00011418,2]
[326586550,1715118633443,-155.0,0.00011418,2]
[326586551,1715118633452,-370.59505344,0.00011419,2]
[326586552,1715118633462,-155.0,0.00011419,2]
[326586553,1715118633472,-4271.31667855,0.00011419,2]
[326586554,1715118633482,-2455.43737711,0.00011419,2]
[326586555,1715118633494,-569.14982681,0.00011419,2]
[326586556,1715118633504,-1679.8470682,0.0001142,2]
[326586557,1715118633516,-645.42583209,0.0001142,2]
[326586558,1715118633527,-150.0,0.00011531,2]
[326586559,1715118633536,-150.0,0.00011531,2]
[326586560,1715118633545,-466.64609791,0.00011642,2]
[326586561,1715118633555,-538.51236108,0.00011643,2]
[326586562,1715118633568,-150.0,0.00011644,2]
[326586563,1715118633578,-2185.73081459,0.00011691,2]
[326586564,1715118633587,-499.99,0.00011691,2]
[326586565,1715118633596,-150.99,0.00011696,2]
[326586566,1715118633606,-6845.68825433,0.00011696,2]
[326586567,1715118633618,-8871.52734567,0.00011696,2]
[326586568,1715118633627,-961.44663402,0.000118,2]
[326586569,1715118633641,-1652.31001679,0.000118,2]
[326586570,1715118633652,-2514.71600352,0.000118,2]
[326586571,1715118633663,-3796.53161987,0.000118,2]
[326586572,1715118633676,-449.84035098,0.000118,2]
[326586573,1715118633687,-2444.85859059,0.000118,2]
[326586574,1715118633696,-250.0,0.00011979,2]
[326586575,1715118633706,-7214.2758574,0.00012,2]
[326586576,1715118633715,-23900.0,0.00012064,2]
[326586577,1715118633724,-609.95985048,0.00012348,2]
[326586578,1715118633734,-150.0,0.00012487,2]
[326586579,1715118633744,-200.0,0.00012493,2]
[326586580,1715118633753,-3885.8076,0.000129,2]
[326586581,1715118633763,-155.30311039,0.000129,2]
[326586582,1715118633773,-163.7869,0.000129,2]
[326586583,1715118633782,-217.21716458,0.000129,2]
[326586584,1715118633792,-796.75630216,0.000129,2]
[326586585,1715118633801,-4944.00687289,0.000129,2]
[326586586,1715118633810,-150.55753947,0.000129,2]
[326586587,1715118633821,-172.8708683,0.000129,2]
[326586588,1715118633830,-592.19695646,0.000129,2]
[326586589,1715118634025,-322.22687614,0.000129,2]
[326586590,1715118634035,-342.06197963,0.000129,2]
[326586591,1715118634044,-437.98531656,0.000129,2]
[326586592,1715118634054,-150.64,0.0001299,2]
[326586593,1715118634065,-150.64,0.0001299,2]
[326586594,1715118634074,-150.64,0.0001299,2]
[326586595,1715118634084,-150.64,0.0001299,2]
[326586596,1715118634094,-150.64,0.0001299,2]
[326586597,1715118634103,-150.64,0.0001299,2]
[326586598,1715118634113,-150.64,0.0001299,2]
[326586599,1715118634123,-150.64,0.0001299,2]
[326586600,1715118634132,-150.64,0.0001299,2]
[326586601,1715118634141,-150.64,0.0001299,2]
[326586602,1715118634151,-150.64,0.0001299,2]
[326586603,1715118634160,-150.64,0.0001299,2]
[326586604,1715118634170,-150.64,0.0001299,2]
[326586605,1715118634179,-150.64,0.0001299,2]
[326586606,1715118634189,-150.64,0.0001299,2]
[326586607,1715118634198,-150.64,0.0001299,2]
[326586608,1715118634209,-150.64,0.0001299,2]
[326586609,1715118634219,-150.64,0.0001299,2]
[326586610,1715118634228,-150.64,0.0001299,2]
[326586611,1715118634238,-150.64,0.0001299,2]
[326586612,1715118634248,-150.64,0.0001299,2]
[326586613,1715118634258,-150.64,0.0001299,2]
[326586614,1715118634266,-150.64,0.0001299,2]
[326586615,1715118634276,-150.64,0.0001299,2]
[326586616,1715118634286,-150.64,0.0001299,2]
[326586617,1715118634295,-150.64,0.0001299,2]
[326586618,1715118634304,-150.64,0.0001299,2]
[326586619,1715118634315,-150.64,0.0001299,2]
[326586620,1715118634324,-150.64,0.0001299,2]
[326586621,1715118634334,-150.64,0.0001299,2]
[326586622,1715118634343,-150.64,0.0001299,2]
[326586623,1715118634352,-150.64,0.0001299,2]
[326586624,1715118634362,-150.64,0.0001299,2]
[326586625,1715118634371,-150.64,0.0001299,2]
[326586626,1715118634381,-150.64,0.0001299,2]
[326586627,1715118634391,-150.64,0.0001299,2]
[326586628,1715118634400,-150.64,0.0001299,2]
[326586629,1715118634410,-150.64,0.0001299,2]
[326586630,1715118634420,-150.64,0.0001299,2]
[326586631,1715118634429,-150.64,0.0001299,2]
[326586632,1715118634439,-150.64,0.0001299,2]
[326586633,1715118634449,-305.72421467,0.00012998,2]
[326586634,1715118634459,-320.73349152,0.00012998,2]
[326586635,1715118634469,-8621.76628602,0.00012998,2]
[326586636,1715118634478,-707.48452441,0.00012998,2]
[326586637,1715118634488,-256.60369827,0.00012998,2]
[326586638,1715118634501,-289.3455407,0.00012998,2]
[326586639,1715118634512,-1817.16410849,0.00012998,2]
[326586640,1715118634522,-155.1428461,0.00012999,2]
[326586641,1715118634532,-1000.8596,0.00012999,2]
[326586642,1715118634542,-525.85721467,0.00013,2]
[326586643,1715118634554,-732.15601401,0.00013,2]
[326586644,1715118634569,-1297.02003697,0.00013,2]
[326586645,1715118634581,-363.2425254,0.00013,2]
[326586646,1715118634592,-1836.77399846,0.00013,2]
[326586647,1715118634607,-3854.0400004,0.00013,2]
[326586648,1715118634619,-2011.148602,0.00013,2]
[326586649,1715118634630,-342.93404351,0.00013,2]
[326586650,1715118639083,-22801.82444342,0.00011416,2]
[326586653,1715118639093,-150.64,0.0001299,2]
[326586655,1715118639104,-150.64,0.0001299,2]
[326586657,1715118639113,-150.64,0.0001299,2]
[326586660,1715118639123,-150.64,0.0001299,2]
[326586661,1715118639133,-150.64,0.0001299,2]
[326586662,1715118639142,-150.64,0.0001299,2]
[326586663,1715118639152,-150.64,0.0001299,2]
[326586664,1715118639161,-150.64,0.0001299,2]
[326586665,1715118639171,-150.64,0.0001299,2]
[326586666,1715118639181,-150.64,0.0001299,2]
[326586667,1715118639190,-150.64,0.0001299,2]
[326586668,1715118639200,-150.64,0.0001299,2]
[326586669,1715118639209,-150.64,0.0001299,2]
[326586670,1715118639220,-150.64,0.0001299,2]
[326586671,1715118639229,-615531.70546911,0.00013,2]
[326586672,1715118639241,-53229.63103616,0.00013,2]
[326586673,1715118639257,-548.09566506,0.00013,2]
[326586674,1715118639268,-760.0,0.00013,2]
[326586675,1715118639279,-948.70512469,0.00013,2]
[326586676,1715118639291,-27061.14939622,0.00013,2]
[326586677,1715118639302,-285.46042681,0.00013,2]
[326586680,1715118641213,-406.24944498,0.00013,2]
[326586683,1715118641225,-11000.0,0.00013,2]
[326586822,1715118643096,-2251.8696414,0.00013,2]
[326586823,1715118643109,-59399.31443959,0.00013,2]
[326586824,1715118643123,-18819.32715519,0.00013,2]
[326586825,1715118643137,-6041.99736684,0.00013,2]
[326586830,1715118645686,-578.60338039,0.000129,2]
[326586834,1715118645697,-3024.58720392,0.00012999,2]
[326586839,1715118645708,-155.0,0.00012999,2]
[326586844,1715118645720,-1580.01291569,0.00013,2]
[326586846,1715118645732,-453.0,0.00013,2]
[326586848,1715118645745,-34067.87781585,0.00013,2]
[326586850,1715118645757,-5607.57055296,0.00013,2]
[326586853,1715118645770,-476.0,0.00013,2]
[326586854,1715118645783,-25142.89807053,0.00013,2]
[326586855,1715118645797,-2513.04908952,0.00013,2]
[326586857,1715118645810,-3219.39896456,0.00013,2]
[326586860,1715118645823,-361.42171353,0.00013,2]
[326586862,1715118645837,-1300.50255762,0.00013,2]
[326586865,1715118645851,-301.60400004,0.00013,2]
[326586867,1715118645863,-1558.35,0.00013,2]
[326586882,1715118647806,-536.50609003,0.00012998,2]
[326586883,1715118647817,-155.0,0.00012998,2]
[326586884,1715118647829,-14612.06645925,0.00013,2]
[326586885,1715118647841,-2902.08058151,0.00013,2]
[326586886,1715118647853,-265.64999794,0.00013,2]
[326586891,1715119002201,6035.03081602,9e-05,2]
[326586894,1715119361856,-155.0,9.971e-05,2]
[326586895,1715119361881,-262.68990001,9.972e-05,2]
[326586896,1715119361916,-155.0,9.972e-05,2]
[326586897,1715119361943,-3004.89985123,9.972e-05,2]
[326586898,1715119362189,-320.88560316,9.973e-05,2]
[326586899,1715119362212,-534.95638881,9.973e-05,2]
[326586900,1715119362234,-363.81807592,9.974e-05,2]
[326586901,1715119362256,-3024.58720392,9.974e-05,2]
[326586902,1715119362279,-4271.31667855,9.974e-05,2]
[326586903,1715119362301,-370.59505344,9.975e-05,2]
[326586904,1715119362324,-155.0,9.975e-05,2]
[326586905,1715119362347,-17278.32405298,9.975e-05,2]
[326586906,1715119362369,-688.79096572,9.975e-05,2]
[326586907,1715119362392,-155.0,9.976e-05,2]
[326586908,1715119362414,-2325.27290029,9.976e-05,2]
[326586909,1715119363338,207.10980669,9.97e-05,2]
[326586910,1715119364408,155.0,9.97e-05,2]
[326586911,1715119372668,-711.54040194,0.00011948,2]
[326586912,1715119372691,-200.0,0.00011949,2]
[326586913,1715119372716,-1000.0,0.00012116,2]
[326586914,1715119372739,-499.99,0.00012116,2]
[326586915,1715119372763,-165.32,0.00012176,2]
[326586916,1715119372789,-150.0,0.00012263,2]
[326586917,1715119372812,-300.0,0.000124,4]
[326586918,1715119372835,-600.0,0.000125,4]
[326586919,1715119372858,-1268.52,0.000125,2]
[326586920,1715119372881,-900.0,0.000126,4]
[326586921,1715119372905,-1561.57283666,0.00012623,2]
[326586922,1715119372933,-150.0,0.00012625,2]
[326586923,1715119372958,-150.0,0.00012625,2]
[326586924,1715119372984,-23900.0,0.00012626,2]
[326586925,1715119373007,-1200.0,0.000127,4]
[326586926,1715119373031,-164.9740556,0.00012761,2]
[326586927,1715119373057,-1500.0,0.000128,4]
[326586928,1715119373082,-164.97405559,0.00012831,2]
[326586929,1715119373105,-2467.3681467,0.00012868,2]
[326586930,1715119373128,-21336.15303944,0.00012869,2]
[326586931,1715119373151,-332.98577486,0.00012899,2]
[326586932,1715119373174,-164.97405559,0.000129,2]
[326586933,1715119373197,-155.30311039,0.000129,2]
[326586934,1715119373221,-300.0,0.000129,4]
[326586935,1715119373244,-1443.15373314,0.000129,2]
[326586936,1715119373268,-817.68004419,0.000129,2]
[326586937,1715119373290,-291.99021104,0.000129,2]
[326586938,1715119373314,-172.87086828,0.000129,2]
[326586939,1715119373338,-250.49200915,0.000129,2]
[326586940,1715119373362,-150.64,0.0001299,2]
[326586941,1715119373387,-150.64,0.0001299,2]
[326586942,1715119373416,-150.64,0.0001299,2]
[326586943,1715119373440,-150.64,0.0001299,2]
[326586944,1715119373466,-150.64,0.0001299,2]
[326586945,1715119373491,-150.64,0.0001299,2]
[326586946,1715119373518,-150.64,0.0001299,2]
[326586947,1715119373542,-150.64,0.0001299,2]
[326586948,1715119373567,-150.64,0.0001299,2]
[326586949,1715119373591,-150.64,0.0001299,2]
[326586950,1715119373616,-150.64,0.0001299,2]
[326586951,1715119373640,-150.64,0.0001299,2]
[326586952,1715119373664,-150.64,0.0001299,2]
[326586953,1715119373687,-317.01746459,0.00012997,2]
[326586954,1715119373709,-327.24491788,0.00012997,2]
[326586955,1715119373733,-155.29827449,0.00012997,2]
[326586956,1715119373756,-190.62573975,0.00012997,2]
[326586957,1715119373780,-207.4547796,0.00012997,2]
[326586958,1715119373806,-9974.56879991,0.00012997,2]
[326586959,1715119373830,-204.24588455,0.00012998,2]
[326586960,1715119373853,-697.82057701,0.00012998,2]
[326586961,1715119373877,-155.0,0.00012998,2]
[326586962,1715119373900,-208.17791052,0.00012998,2]
[326586963,1715119373924,-155.82270179,0.00012998,2]
[326586964,1715119373946,-155.0,0.00012998,2]
[326586965,1715119373972,-200.50882501,0.00012998,2]
[326586966,1715119373994,-950.01829118,0.00012998,2]
[326586967,1715119374017,-170.82312602,0.00012998,2]
[326586968,1715119374041,-281.02464391,0.00012998,2]
[326586969,1715119374065,-1262.53141957,0.00012998,2]
[326586970,1715119374088,-630.95571505,0.00012998,2]
[326586971,1715119374111,-267.83236721,0.00012998,2]
[326586972,1715119374134,-193.00424043,0.00012998,2]
[326586973,1715119374156,-272.11746046,0.00012998,2]
[326586974,1715119374178,-295.61070159,0.00012998,2]
[326586975,1715119374202,-246.85402242,0.00012998,2]
[326586976,1715119374227,-274.61893776,0.00012999,2]
[326586977,1715119374250,-3084.72177879,0.00012999,2]
[326586978,1715119374276,-1268.25303457,0.00012999,2]
[326586979,1715119374471,-155.07394663,0.00012999,2]
[326586980,1715119442837,-155.18,0.000124,4]
[326587015,1715119833086,-155.0,0.00011611,2]
[326587018,1715119833096,-1720.10744736,0.00011611,2]
[326587023,1715119833115,-277.71406985,0.00011611,2]
[326587026,1715119833124,-1.64928728,0.00011611,2]
[326587029,1715119833135,-1713.30000046,0.00011611,2]
[326587033,1715119833149,-377.14468412,0.00011611,2]
[326587037,1715119833160,-486.93,0.00011611,2]
[326587077,1715119839212,-17.28141743,0.00011611,2]
[326587082,1715119839226,-428.28181463,0.00011611,2]
[326587085,1715119839236,-207.10980669,0.00011612,2]
[326587088,1715119839246,-534.95638881,0.00011612,2]
[326587091,1715119839255,-363.81807592,0.00011612,2]
[326587094,1715119839265,-39.24946395,0.00011612,2]
[326587096,1715119839277,-2286.02343634,0.00011612,2]
[326587098,1715119839287,-4271.31667855,0.00011613,2]
[326587100,1715119839296,-3004.89985123,0.00011613,2]
[326587102,1715119839307,-1827.44748006,0.00011614,2]
[326587104,1715119839316,-165.34,0.00011622,2]
[326587106,1715119839326,-683.32093934,0.00011697,2]
[326587108,1715119839335,-1000.0,0.00011721,2]
[326587110,1715119839345,-200.0,0.00011734,2]
[326587112,1715119839354,-150.0,0.0001186,2]
[326587114,1715119839364,-499.99,0.0001186,2]
[326587116,1715119839374,-250.0,0.00012095,2]
[326587118,1715119839383,-1332.14,0.00012108,2]
[326587120,1715119839393,-23900.0,0.00012213,2]
[326587122,1715119839403,-1500.0,0.00012302,2]
[326587124,1715119839414,-233.76,0.00012381,2]
[326587126,1715119839424,-11625.42874571,0.000124,2]
[326587128,1715119839433,-600.0,0.000124,4]
[326587130,1715119839443,-1200.0,0.000125,4]
[326587132,1715119839452,-1800.0,0.000126,4]
[326587134,1715119839461,-2400.0,0.000127,4]
[326587136,1715119839472,-3000.0,0.000128,4]
[326587138,1715119839481,-3217.72069957,0.00012867,2]
[326587140,1715119839491,-150.0,0.00012897,2]
[326587142,1715119839500,-516.6689,0.00012899,2]
[326587144,1715119839511,-1876.7957,0.00012899,2]
[326587146,1715119839520,-11077.1357,0.00012899,2]
[326587148,1715119839530,-600.0,0.000129,4]
[326587150,1715119839539,-172.87086828,0.000129,2]
[326587152,1715119839548,-166.99467276,0.000129,2]
[326587154,1715119839558,-6628.97099352,0.000129,2]
[326587156,1715119839567,-150.85,0.0001299,2]
[326587158,1715119839577,-369.64230208,0.00012997,2]
[326587160,1715119839586,-155.72020792,0.00012997,2]
[326587162,1715119839596,-158.90560108,0.00012997,2]
[326587164,1715119839605,-711.0532111,0.00012997,2]
[326587166,1715119839615,-281.34418464,0.00012997,2]
[326587168,1715119839624,-265.34232885,0.00012997,2]
[326587170,1715119839634,-155.0,0.00012997,2]
[326587172,1715119839643,-240.32550099,0.00012997,2]
[326587174,1715119839654,-525.11950766,0.00012997,2]
[326587176,1715119839664,-380.29397867,0.00012998,2]
[326587178,1715119839677,-602506.23911679,0.00012999,2]
[326587180,1715119839686,-1034.6412428,0.00012999,3]
[326587182,1715119839696,-202.43844117,0.00012999,3]
[326587184,1715119839706,-1005.23426011,0.00012999,2]
[326587186,1715119839715,-768232.32493644,0.00013,2]
[326587189,1715119839728,-852544.07554438,0.00013,2]
[326587275,1715119840686,-3762.41856736,0.00013,2]
[326587281,1715119840698,-4395.75536144,0.00013,2]
[326587284,1715119840711,-600.0,0.00013,2]
[326587287,1715119840723,-1444557.73198208,0.00013,2]
[326587290,1715119840735,-853789.11439754,0.00013,2]
[326587294,1715119840746,-561540.15791229,0.00013,2]
[326587297,1715119840756,-749762.24415163,0.00013,2]
[326587300,1715119840767,-479.58110549,0.00013,2]
[326587336,1715119844502,-155.18008529,0.00013,2]
[326587337,1715119844514,-3127.0,0.00013,2]
[326587338,1715119844526,-1726033.86556818,0.00013,2]
[326587339,1715119844536,-560.13940762,0.00013,2]
[326587340,1715119844545,-164.87123951,0.00013,2]
[326587341,1715119844555,-18535.52200939,0.00013,2]
[326587342,1715119844564,-2000.0,0.00013,2]
[326587343,1715119844573,-200.0,0.00013,2]
[326587344,1715119844582,-200.0,0.00013,2]
[326587345,1715119844592,-1774.1169,0.00013,2]
[326587346,1715119844601,-2000.0,0.0001313,2]
[326587347,1715119844610,-200.0,0.0001313,2]
[326587348,1715119844620,-200.0,0.0001313,2]
[326587349,1715119844629,-1000.0,0.00013186,2]
[326587350,1715119844638,-154.73,0.00013187,2]
[326587351,1715119844647,-1560.65973711,0.00013259,2]
[326587352,1715119844662,-2000.0,0.00013261,2]
[326587353,1715119844674,-200.0,0.00013261,2]
[326587354,1715119844684,-627.25,0.00013314,2]
[326587355,1715119844693,-2000.0,0.00013394,2]
[326587356,1715119844703,-200.0,0.00013394,2]
[326587357,1715119844712,-361.75,0.00013425,2]
[326587358,1715119844722,-169.73,0.00013425,2]
[326587359,1715119844731,-200.0,0.00013528,2]
[326587360,1715119844741,-500.0,0.00013699,2]
[326587361,1715119844750,-233.76,0.00013929,2]
[326587362,1715119844759,-210.0,0.00014187,2]
[326587363,1715119844769,-6628.97099345,0.00014376,2]
[326587364,1715119844778,-1000.0,0.00014651,2]
[326587365,1715119844788,-618.22068598,0.00015,2]
[326587366,1715119844797,-233.76,0.00015476,2]
[326587367,1715119844807,-293.0,0.00015605,2]
[326587368,1715119844819,-3075.87418959,0.00016,2]
[326587369,1715119844830,-1741.56006249,0.00016,2]
[326587370,1715119844839,-583.0,0.000161,5]
[326587371,1715119844848,-1000.0,0.00016116,2]
[326587372,1715119844858,-154.73,0.00016484,2]
[326587373,1715119844867,-233.76,0.00017024,2]
[326587374,1715119844876,-172.87086828,0.00017084,2]
[326587375,1715119844886,-151.72922617,0.00017207,2]
[326587376,1715119844895,-1000.0,0.00017581,2]
[326587377,1715119844908,-155.82389907,0.0001788,2]
[326587378,1715119844918,-155.82389901,0.0001788,2]
[326587379,1715119844927,-155.82389901,0.0001788,2]
[326587380,1715119844937,-166.99467275,0.000179,2]
[326587381,1715119844948,-237.77515042,0.00017929,2]
[326587382,1715119844957,-750.0,0.00018,3]
[326587383,1715119844967,-1774.11691,0.00018,2]
[326587384,1715119844976,-155.82389901,0.00018149,2]
[326587385,1715119844986,-154.23595461,0.00018563,2]
[326587386,1715119844996,-233.76,0.00018572,2]
[326587387,1715119845005,-281.57953583,0.00019,2]
[326587388,1715119845016,-155.69808459,0.00019166,2]
[326587389,1715119845026,-155.0,0.00019177,2]
[326587390,1715119845035,-326.54378188,0.00019178,2]
[326587391,1715119845045,-500.0,0.00019178,2]
[326587392,1715119845054,-500.0,0.00019178,2]
[326587393,1715119845063,-500.0,0.00019178,2]
[326587394,1715119845072,-496.55675503,0.00019178,2]
[326587395,1715119845081,-500.0,0.00019178,2]
[326587396,1715119845090,-500.0,0.00019178,2]
[326587397,1715119845099,-451.99902972,0.00019178,2]
[326587398,1715119845109,-500.0,0.00019178,2]
[326587399,1715119845118,-500.0,0.00019178,2]
[326587401,1715119845128,-500.0,0.00019178,2]
[326587402,1715119845137,-500.0,0.00019178,2]
[326587403,1715119845146,-500.0,0.00019178,2]
[326587404,1715119845158,-500.0,0.00019178,2]
[326587405,1715119845167,-500.0,0.00019178,2]
[326587406,1715119845177,-500.0,0.00019178,2]
[326587407,1715119845186,-500.0,0.00019178,2]
[326587408,1715119845195,-500.0,0.00019178,2]
[326587409,1715119845205,-500.0,0.00019178,2]
[326587410,1715119845214,-500.0,0.00019178,2]
[326587411,1715119845223,-500.0,0.00019178,2]
[326587412,1715119845232,-500.0,0.00019178,2]
[326587413,1715119845242,-500.0,0.00019178,2]
[326587414,1715119845250,-500.0,0.00019178,2]
[326587415,1715119845426,-500.0,0.00019178,2]
[326587416,1715119845436,-177.02,0.00019178,2]
[326587417,1715119845446,-500.0,0.00019178,2]
[326587418,1715119845456,-500.0,0.00019178,2]
[326587419,1715119845465,-500.0,0.00019178,2]
[326587420,1715119845474,-500.0,0.00019178,2]
[326587421,1715119845483,-500.0,0.00019178,2]
[326587422,1715119845493,-500.0,0.00019178,2]
[326587423,1715119845502,-500.0,0.00019178,2]
[326587424,1715119845512,-500.0,0.00019178,2]
[326587425,1715119845521,-500.0,0.00019178,2]
[326587426,1715119845531,-500.0,0.00019178,2]
[326587427,1715119845540,-604.76,0.00019178,2]
[326587428,1715119845550,-500.0,0.00019178,2]
[326587429,1715119845560,-500.0,0.00019178,2]
[326587430,1715119845569,-500.0,0.00019178,2]
[326587431,1715119845578,-500.0,0.00019178,2]
[326587432,1715119845587,-500.0,0.00019178,2]
[326587433,1715119845596,-500.0,0.00019178,2]
[326587434,1715119845605,-500.0,0.00019178,2]
[326587435,1715119845615,-500.0,0.00019178,2]
[326587436,1715119845625,-500.0,0.00019178,2]
[326587437,1715119845635,-386.54,0.00019178,2]
[326587438,1715119845644,-500.0,0.00019178,2]
[326587439,1715119845654,-500.0,0.00019178,2]
[326587440,1715119845667,-592.43,0.00019178,2]
[326587441,1715119845678,-500.0,0.00019178,2]
[326587442,1715119845687,-500.0,0.00019178,2]
[326587443,1715119845696,-500.0,0.00019178,2]
[326587444,1715119845705,-500.0,0.00019178,2]
[326587445,1715119845714,-500.0,0.00019178,2]
[326587446,1715119845723,-500.0,0.00019178,2]
[326587447,1715119845732,-500.0,0.00019178,2]
[326587448,1715119845742,-500.0,0.00019178,2]
[326587449,1715119845751,-500.0,0.00019178,2]
[326587450,1715119845761,-500.0,0.00019178,2]
[326587451,1715119845770,-500.0,0.00019178,2]
[326587452,1715119845779,-500.0,0.00019178,2]
[326587453,1715119845789,-500.0,0.00019178,2]
[326587454,1715119845798,-500.0,0.00019178,2]
[326587455,1715119845807,-500.0,0.00019178,2]
[326587456,1715119845816,-500.0,0.00019178,2]
[326587457,1715119845826,-500.0,0.00019178,2]
[326587458,1715119845835,-541.17,0.00019178,2]
[326587459,1715119845844,-500.0,0.00019178,2]
[326587461,1715119845854,-500.0,0.00019178,2]
[326587462,1715119845864,-500.0,0.00019178,2]
[326587463,1715119845873,-500.0,0.00019178,2]
[326587464,1715119845882,-500.0,0.00019178,2]
[326587465,1715119845891,-500.0,0.00019178,2]
[326587466,1715119845900,-500.0,0.00019178,2]
[326587467,1715119845914,-500.0,0.00019178,2]
[326587468,1715119845923,-617.89,0.00019178,2]
[326587469,1715119845932,-500.0,0.00019178,2]
[326587470,1715119845946,-607.21,0.00019178,2]
[326587471,1715119845955,-500.0,0.00019178,2]
[326587472,1715119845965,-500.0,0.00019178,2]
[326587473,1715119845975,-500.0,0.00019178,2]
[326587474,1715119845986,-500.0,0.00019178,2]